bitfinex-derivatives/quotes_SOLF0:USTF0_20250730
["timestamp","ask_amount","ask_price","bid_price","bid_amount"]
[1753906063300,5.6483,177.05,177.04,109.58]
[1753906063496,5.6477,177.07,177.05,3.1]
[1753906063805,3.23,177.14,177.06,3.1]
[1753906064100,3.23,177.12,177.08,3.1]
[1753906064303,3.23,177.12,177.09,3.1]
[1753906064704,5.6464,177.11,177.1,3.1]
[1753906065002,3.23,177.1,177.06,3.11]
[1753906065203,5.6475,177.08,177.06,3.11]
[1753906065604,5.6475,177.08,177.07,3.11]
[1753906065904,5.6471,177.09,177.08,3.11]
[1753906066108,3.23,177.12,177.09,3.11]
[1753906066313,5.6467,177.1,177.09,3.11]
[1753906067305,3.23,177.16,177.04,112.69]
[1753906067508,3.23,177.13,177.04,112.69]
[1753906067804,3.23,177.07,177.04,109.58]
[1753906068103,3.23,177.16,177.06,3.11]
[1753906068305,3.23,177.16,177.06,9.64638782]
[1753906068707,9.76638782,177.22,177.11,9.64638782]
[1753906068905,3.23,177.21,177.11,119.24638782]
[1753906069104,3.23,177.21,177.13,9.64638782]
[1753906069308,3.23,177.21,177.13,6.53638782]
[1753906069604,5.6453,177.15,177.13,6.53638782]
[1753906069800,11.2853,177.23,177.13,6.53638782]
[1753906070004,3.23,177.22,177.13,6.53638782]
[1753906070198,5.6454,177.14,177.13,6.53638782]
[1753906070909,5.6451,177.15,177.14,3.11]
[1753906071204,3.23,177.18,177.13,6.53638782]
[1753906071502,3.23,177.13,177.04,9.64638782]
[1753906071708,3.23,177.13,177.05,3.11]
[1753906071903,3.23,177.13,177.06,6.53638782]
[1753906072103,3.23,177.13,177.07,3.11]
[1753906072515,3.23,177.08,177.02,3.11]
[1753906072704,6.53638782,177.13,177.03,6.53638782]
[1753906072904,6.53638782,177.13,177.02,109.6]
[1753906072905,5.6478,177.07,177.05,9.64638782]
[1753906073198,3.23,177.14,177.03,6.53638782]
[1753906073404,5.6483,177.06,177.03,6.53638782]
[1753906073607,5.6483,177.06,177.03,9.64638782]
[1753906073608,8.8783,177.06,177.03,9.64638782]
[1753906073798,8.8783,177.06,177.04,3.11]
[1753906073999,5.6483,177.05,177.04,3.11]
[1753906074607,5.6486,177.04,177.03,6.53638782]
[1753906075207,5.6486,177.04,177.02,109.6]
[1753906075208,5.6489,177.03,177.02,109.6]
[1753906075710,8.8789,177.03,177.02,109.6]
[1753906076515,5.6499,177.0,176.99,6.53638782]
[1753906076707,3.23,177.0,176.97,116.13638782]
[1753906076909,3.23,177.06,176.97,109.6]
[1753906077113,3.23,177.03,176.97,109.6]
[1753906077816,8.8805,176.98,176.97,109.6]
[1753906081105,3.08,177.01,176.98,3.12]
[1753906081313,3.08,177.07,176.99,9.65638782]
[1753906081506,5.6496,177.01,176.99,6.53638782]
[1753906081716,3.08,177.03,177.0,3.12]
[1753906082021,5.6505,176.98,176.97,109.6]
[1753906082219,3.08,177.05,176.97,116.13638782]
[1753906082419,3.08,177.06,176.99,6.53638782]
[1753906082623,3.08,177.13,177.03,3.12]
[1753906082824,3.08,177.13,177.04,109.62]
[1753906083017,6.53638782,177.12,176.95,379.34]
[1753906083214,6.53638782,177.06,176.96,119.27638782]
[1753906083422,3.08,177.05,176.96,109.62]
[1753906083618,5.6508,176.97,176.96,109.62]
[1753906084122,3.08,177.02,176.94,109.62]
[1753906084430,3.08,177.02,176.94,112.74]
[1753906084724,3.08,177.02,176.95,9.65638782]
[1753906084915,9.61638782,177.07,176.96,3.12]
[1753906085117,3.08,177.06,176.96,3.12]
[1753906085425,6.53638782,177.07,176.95,6.53638782]
[1753906085626,6.53638782,177.02,176.92,3.12]
[1753906085823,3.08,176.98,176.89,109.62]
[1753906086120,3.08,176.96,176.9,109.62]
[1753906086522,5.6527,176.91,176.9,109.62]
[1753906087125,5.6527,176.91,176.9,112.74]
[1753906087426,5.654,176.87,176.85,3.12]
[1753906087627,3.08,176.93,176.84,379.6]
[1753906087827,3.08,176.93,176.85,109.64]
[1753906088020,5.6543,176.86,176.85,109.64]
[1753906088225,8.7343,176.86,176.85,109.64]
[1753906088731,5.6543,176.86,176.85,109.64]
[1753906088923,8.7343,176.86,176.85,109.64]
[1753906089138,6.53638782,176.92,176.82,9.65638782]
[1753906089139,3.08,176.91,176.82,9.65638782]
[1753906089426,3.08,176.91,176.82,119.29638782]
[1753906089622,3.08,176.91,176.87,3.12]
[1753906089824,6.53638782,176.96,176.87,3.12]
[1753906090020,3.08,176.95,176.86,116.19638782]
[1753906090219,3.08,176.91,176.86,119.31638782]
[1753906090426,3.08,176.91,176.88,3.12]
[1753906090623,3.08,176.94,176.89,6.53638782]
[1753906090824,6.53638782,177.0,176.91,3.12]
[1753906091018,5.6524,176.92,176.91,3.12]
[1753906091625,5.6527,176.91,176.9,109.66]
[1753906092032,8.7327,176.91,176.9,109.66]
[1753906092230,5.654,176.87,176.86,3.12]
[1753906092427,5.654,176.87,176.86,109.66]
[1753906092730,11.3008,176.99,176.86,109.66]
[1753906092731,3.08,176.95,176.87,3.12]
[1753906093029,3.08,176.95,176.88,6.53638782]
[1753906093333,3.08,176.95,176.91,3.12]
[1753906093526,3.08,176.95,176.92,3.12]
[1753906093825,6.53638782,177.0,176.9,6.53638782]
[1753906094024,3.08,176.99,176.9,109.68]
[1753906094433,3.08,176.99,176.92,3.12]
[1753906094729,3.08,177.03,176.94,6.53638782]
[1753906094928,5.6515,176.95,176.94,6.53638782]
[1753906095124,3.08,176.97,176.94,9.65638782]
[1753906095536,5.6511,176.96,176.94,9.65638782]
[1753906095738,3.08,176.97,176.94,9.65638782]
[1753906096132,6.53638782,177.01,176.9,6.53638782]
[1753906096431,3.08,177.0,176.9,6.53638782]
[1753906096833,5.6527,176.91,176.9,9.65638782]
[1753906097029,3.08,176.91,176.89,109.68]
[1753906097229,5.6531,176.9,176.89,109.68]
[1753906098229,8.7331,176.9,176.89,109.68]
[1753906098930,5.6531,176.9,176.89,112.8]
[1753906099130,8.7331,176.9,176.89,109.68]
[1753906100029,5.6543,176.86,176.85,489.48]
[1753906100537,5.654,176.88,176.85,492.6]
[1753906100728,6.53638782,176.96,176.86,6.53638782]
[1753906100929,3.08,176.95,176.89,3.12]
[1753906101134,5.6525,176.92,176.89,112.8]
[1753906101437,3.08,176.94,176.9,3.12]
[1753906101626,3.08,176.96,176.92,3.12]
[1753906101831,3.08,176.95,176.91,6.53638782]
[1753906102032,6.53638782,177.0,176.89,119.33638782]
[1753906102236,5.6527,176.92,176.9,3.12]
[1753906102731,3.08,176.91,176.89,6.53638782]
[1753906102930,3.08,176.93,176.86,109.7]
[1753906103333,8.734,176.87,176.86,100.9856]
[1753906103537,3.08,176.87,176.81,9.65638782]
[1753906103839,3.08,176.86,176.83,112.82]
[1753906104036,3.08,176.89,176.84,3.12]
[1753906104237,3.08,176.91,176.83,112.82]
[1753906104834,3.08,176.91,176.84,3.12]
[1753906105134,5.6544,176.86,176.85,3.12]
[1753906105841,5.6548,176.85,176.83,112.82]
[1753906106030,5.6548,176.85,176.84,3.12]
[1753906106433,5.655,176.84,176.83,109.7]
[1753906106636,8.735,176.84,176.83,109.7]
[1753906106835,5.655,176.84,176.83,112.82]
[1753906107039,5.6547,176.85,176.83,112.82]
[1753906107338,5.6547,176.85,176.84,3.12]
[1753906107531,3.08,176.9,176.85,3.12]
[1753906107737,6.53638782,176.93,176.85,3.12]
[1753906107940,3.08,176.92,176.83,119.35638782]
[1753906108138,5.6541,176.87,176.83,116.23638782]
[1753906108340,11.3018,176.97,176.85,6.53638782]
[1753906108341,3.08,176.9,176.85,6.53638782]
[1753906108540,3.08,176.95,176.89,6.53638782]
[1753906108842,3.08,176.95,176.92,6.53638782]
[1753906109038,11.2986,177.02,176.93,3.11]
[1753906109243,5.6518,176.94,176.93,3.11]
[1753906110042,5.6521,176.93,176.92,6.53638782]
[1753906110242,3.3,176.94,176.92,6.53638782]
[1753906110438,17.83498782,177.02,176.92,9.64638782]
[1753906110638,5.652,176.94,176.92,9.64638782]
[1753906110844,3.3,176.94,176.92,9.64638782]
[1753906111041,6.53638782,176.99,176.89,116.23638782]
[1753906111237,3.3,176.96,176.89,109.7]
[1753906111538,3.3,176.94,176.87,109.7]
[1753906112139,3.3,176.94,176.88,6.53638782]
[1753906112543,3.3,176.94,176.9,6.53638782]
[1753906112737,3.3,176.94,176.91,3.11]
[1753906112939,6.53638782,177.0,176.91,3.11]
[1753906113141,3.3,176.99,176.9,6.53638782]
[1753906113342,5.6527,176.91,176.9,6.53638782]
[1753906113544,6.53638782,177.03,176.91,3.19]
[1753906113738,16.96,177.16,176.9,6.53638782]
[1753906113739,6.53638782,177.17,177.02,3.19]
[1753906114046,6.53638782,177.17,177.07,3.19]
[1753906114447,128.71865464,177.26,177.07,3.19]
[1753906114649,6.53638782,177.2,177.09,6.53638782]
[1753906114948,5.6456,177.14,177.09,9.72638782]
[1753906115450,6.53638782,177.2,177.09,9.72638782]
[1753906115750,3.3,177.18,177.09,9.72638782]
[1753906116049,5.6462,177.12,177.06,6.53638782]
[1753906116243,3.3,177.11,177.06,9.72638782]
[1753906116442,3.3,177.14,177.06,3.19]
[1753906116644,3.3,177.14,177.06,9.72638782]
[1753906116842,3.3,177.14,177.06,3.19]
[1753906117038,3.3,177.19,177.09,3.19]
[1753906117243,3.3,177.09,177.06,3.19]
[1753906118049,3.3,177.08,177.06,3.19]
[1753906118249,3.3,177.14,177.03,3.19]
[1753906118453,9.94920646,177.15,177.02,9.94920646]
[1753906118747,3.3,177.11,177.01,3.19]
[1753906118947,3.3,177.07,177.01,3.19]
[1753906119145,3.3,177.11,177.03,3.19]
[1753906119843,379.88,177.2,177.0,109.7]
[1753906119844,3.3,177.19,177.09,3.19]
[1753906120243,3.3,177.14,177.1,3.19]
[1753906120449,3.3,177.14,177.12,3.19]
[1753906121142,3.3,177.19,177.09,3.19]
[1753906121941,3.3,177.17,177.08,3.19]
[1753906122146,3.3,177.17,177.09,3.19]
[1753906122940,5.6462,177.12,177.09,3.19]
[1753906123140,8.9462,177.12,177.1,3.19]
[1753906123340,3.3,177.12,177.09,3.19]
[1753906124251,5.6466,177.11,177.09,3.19]
[1753906124453,9.94920646,177.19,177.06,3.19]
[1753906124454,3.3,177.09,177.06,3.19]
[1753906124653,3.3,177.18,177.06,3.19]
[1753906124851,3.3,177.09,177.06,3.19]
[1753906125053,9.94920646,177.16,177.06,3.19]
[1753906125347,5.6479,177.06,177.04,3.19]
[1753906125549,9.94920646,177.13,177.01,3.19]
[1753906125550,3.3,177.12,177.01,3.19]
[1753906125741,3.3,177.12,177.02,9.94920646]
[1753906125942,3.3,177.12,177.03,3.19]
[1753906126344,5.647,177.09,177.03,3.19]
[1753906126746,3.3,177.15,177.03,3.19]
[1753906127153,3.3,177.15,177.06,3.19]
[1753906127950,3.3,177.15,177.02,9.94920646]
[1753906127951,3.3,177.15,177.04,3.19]
[1753906128149,3.3,177.15,177.05,9.94920646]
[1753906128356,3.3,177.15,177.06,3.19]
[1753906128851,5.647,177.09,177.08,3.19]
[1753906129256,3.3,177.11,177.08,3.19]
[1753906129257,8.9466,177.11,177.08,3.19]
[1753906129459,3.3,177.18,177.06,3.19]
[1753906130254,3.3,177.17,177.06,3.19]
[1753906133158,3.3,177.17,177.08,9.94920646]
[1753906133349,3.3,177.17,177.09,3.19]
[1753906133553,5.6458,177.13,177.09,3.19]
[1753906134060,3.3,177.17,177.09,3.19]
[1753906134857,3.3,177.17,177.11,9.94920646]
[1753906135053,3.3,177.17,177.12,3.19]
[1753906135255,5.6448,177.16,177.12,3.19]
[1753906135453,3.3,177.19,177.12,3.19]
[1753906136860,5.6445,177.17,177.13,3.19]
[1753906137059,3.3,177.19,177.13,3.19]
[1753906137360,5.6452,177.15,177.13,3.19]
[1753906137560,5.6452,177.15,177.14,3.19]
[1753906138457,3.3,177.2,177.11,3.19]
[1753906139557,5.6456,177.14,177.11,3.19]
[1753906139753,5.6456,177.14,177.1,6.542312]
[1753906139958,3.03,177.17,177.13,3.16]
[1753906140154,5.6453,177.15,177.12,6.542312]
[1753906140355,3.03,177.17,177.13,3.16]
[1753906140560,3.03,177.22,177.12,9.702312]
[1753906140761,5.645,177.16,177.12,6.542312]
[1753906141062,5.645,177.16,177.13,3.16]
[1753906142060,5.645,177.16,177.14,3.16]
[1753906142260,3.03,177.19,177.0,126.52]
[1753906142261,3.03,177.19,177.13,3.16]
[1753906142462,3.03,177.19,177.14,6.542312]
[1753906142659,6.542312,177.25,177.17,3.16]
[1753906142860,3.03,177.24,177.17,3.16]
[1753906143265,3.03,177.24,177.14,9.702312]
[1753906143564,3.03,177.18,177.11,3.16]
[1753906143958,5.646,177.12,177.11,3.16]
[1753906144855,6.542312,177.19,177.08,6.542312]
[1753906145065,3.03,177.14,177.06,3.16]
[1753906145464,5.6467,177.1,177.07,3.16]
[1753906146065,3.03,177.14,177.07,3.16]
[1753906146260,3.03,177.14,177.08,6.542312]
[1753906146564,6.542312,177.18,177.09,3.16]
[1753906146565,5.6466,177.1,177.09,3.16]
[1753906147056,5.6466,177.1,177.04,385.1085]
[1753906147057,3.03,177.11,177.07,3.16]
[1753906147254,3.03,177.15,177.07,3.16]
[1753906147659,5.6473,177.08,177.07,3.16]
[1753906147961,3.03,177.07,177.05,3.16]
[1753906148158,3.03,177.07,176.94,379.44]
[1753906148159,6.542312,177.1,177.0,6.542312]
[1753906148463,6.542312,177.1,176.94,379.44]
[1753906148464,3.03,177.09,177.03,3.16]
[1753906149364,5.6482,177.06,177.03,3.16]
[1753906149962,5.6483,177.05,177.03,3.16]
[1753906150167,5.6483,177.05,177.02,6.542312]
[1753906150368,5.6483,177.05,177.03,3.16]
[1753906150662,6.542312,177.12,177.06,3.16]
[1753906150867,3.03,177.13,177.03,3.16]
[1753906151258,5.6482,177.06,177.04,3.16]
[1753906151457,6.542312,177.12,177.04,3.16]
[1753906151659,3.03,177.11,177.04,3.16]
[1753906151960,5.6482,177.05,177.04,3.16]
[1753906152165,5.6482,177.05,177.0,6.542312]
[1753906152166,3.03,177.04,177.01,3.16]
[1753906152361,5.6481,177.06,177.01,3.16]
[1753906152670,3.03,177.09,177.03,3.16]
[1753906153765,3.03,177.11,177.01,3.16]
[1753906154362,5.6495,177.02,177.01,3.16]
[1753906154667,6.542312,177.09,176.98,3.16]
[1753906154969,3.03,177.05,176.98,3.16]
[1753906155373,5.6502,176.99,176.98,3.16]
[1753906156167,5.6497,177.01,176.98,3.16]
[1753906156562,5.6486,177.04,177.01,3.16]
[1753906156768,5.6486,177.04,177.0,6.542312]
[1753906156964,5.6486,177.04,177.02,3.16]
[1753906157164,5.6486,177.04,177.0,6.542312]
[1753906157165,5.6479,177.06,177.01,3.16]
[1753906157568,5.6479,177.06,177.01,5.6493]
[1753906157764,5.6479,177.06,177.02,3.16]
[1753906157958,5.6479,177.06,177.03,6.542312]
[1753906158464,5.6478,177.07,177.05,3.16]
[1753906158671,3.03,177.09,177.05,3.16]
[1753906158963,3.03,177.08,177.03,6.542312]
[1753906159169,3.03,177.08,177.06,3.16]
[1753906159469,110.0,177.07,177.06,3.16]
[1753906160067,113.03,177.07,177.03,6.542312]
[1753906160268,113.03,177.07,177.05,3.16]
[1753906160665,3.03,177.1,177.04,6.542312]
[1753906160867,3.03,177.16,177.09,6.542312]
[1753906161065,7.14458057,177.15,177.09,6.542312]
[1753906161271,22.53151204,177.2,177.09,12.189212]
[1753906161473,3.03,177.14,177.09,12.189212]
[1753906161862,3.03,177.14,177.09,6.542312]
[1753906162062,3.03,177.23,177.09,6.542312]
[1753906162273,3.03,177.21,177.14,6.542312]
[1753906162470,5.644,177.19,177.14,6.542312]
[1753906162669,3.03,177.22,177.14,6.542312]
[1753906162976,3.03,177.22,177.15,3.16]
[1753906163272,8.674,177.19,177.16,3.16]
[1753906163474,3.03,177.19,177.16,3.16]
[1753906164371,8.6738,177.19,177.16,3.16]
[1753906164675,3.03,177.19,177.16,3.16]
[1753906164874,8.674,177.19,177.16,3.16]
[1753906165075,3.03,177.19,177.16,3.16]
[1753906165776,8.6744,177.18,177.15,6.542312]
[1753906165976,3.03,177.17,177.15,9.702312]
[1753906166275,8.6747,177.17,177.15,9.702312]
[1753906166576,3.03,177.17,177.15,9.702312]
[1753906167878,8.6746,177.17,177.15,9.702312]
[1753906168080,3.03,177.15,177.13,6.542312]
[1753906168269,3.03,177.15,177.13,9.702312]
[1753906168467,6.542312,177.24,177.14,3.16]
[1753906168780,6.542312,177.22,177.11,6.542312]
[1753906168970,3.04,177.21,177.11,6.542312]
[1753906169175,3.04,177.21,177.13,6.542312]
[1753906169566,3.04,177.21,177.14,3.16]
[1753906169973,5.6447,177.16,177.14,3.16]
[1753906170169,6.542312,177.24,177.13,6.542312]
[1753906170374,3.04,177.18,177.15,3.16]
[1753906170677,3.04,177.23,177.13,9.702312]
[1753906171078,3.04,177.23,177.13,6.542312]
[1753906171281,5.6454,177.14,177.13,6.542312]
[1753906171580,8.6854,177.14,177.13,6.542312]
[1753906171981,8.686,177.12,177.11,6.542312]
[1753906172172,3.04,177.12,177.11,6.542312]
[1753906172376,5.6456,177.14,177.11,6.542312]
[1753906172683,3.04,177.19,177.11,6.542312]
[1753906172984,3.04,177.19,177.11,9.702312]
[1753906173277,3.04,177.19,177.13,3.16]
[1753906173674,3.04,177.19,177.14,6.542312]
[1753906173881,3.04,177.24,177.14,9.702312]
[1753906174075,3.04,177.24,177.15,3.16]
[1753906174884,5.6441,177.18,177.15,3.16]
[1753906175081,8.6841,177.18,177.16,3.16]
[1753906175382,5.6438,177.19,177.16,9.702312]
[1753906175583,3.04,177.2,177.17,3.16]
[1753906175792,3.04,177.25,177.16,6.542312]
[1753906176076,6.542312,177.26,177.16,9.702312]
[1753906176280,3.04,177.25,177.16,9.702312]
[1753906177084,3.04,177.25,177.19,3.16]
[1753906177382,3.04,177.24,177.21,3.16]
[1753906177575,8.6827,177.23,177.21,3.16]
[1753906177778,3.04,177.23,177.21,3.16]
[1753906177984,3.04,177.22,177.2,6.542312]
[1753906178183,3.04,177.21,177.2,6.542312]
[1753906178382,3.04,177.2,177.18,9.702312]
[1753906178684,3.04,177.28,177.19,3.16]
[1753906178878,5.6433,177.21,177.19,3.16]
[1753906179081,3.04,177.2,177.18,6.542312]
[1753906179278,3.04,177.24,177.17,6.542312]
[1753906179479,3.04,177.26,177.17,3.16]
[1753906179686,3.04,177.26,177.18,6.542312]
[1753906179886,3.04,177.26,177.16,6.542312]
[1753906180080,6.542312,177.27,177.16,6.542312]
[1753906180282,3.04,177.26,177.18,3.16]
[1753906180479,3.04,177.26,177.18,9.702312]
[1753906180681,3.04,177.26,177.16,9.702312]
[1753906180881,3.04,177.24,177.16,6.542312]
[1753906181284,8.6843,177.18,177.16,6.542312]
[1753906181485,11.2832,177.26,177.1,6.542312]
[1753906181681,3.04,177.17,177.15,6.542312]
[1753906182086,3.04,177.17,177.15,9.702312]
[1753906182583,5.6447,177.16,177.15,9.702312]
[1753906182775,5.6447,177.16,177.15,6.542312]
[1753906182982,5.6447,177.16,177.15,9.702312]
[1753906183180,5.6441,177.18,177.16,3.16]
[1753906183382,3.04,177.24,177.15,6.542312]
[1753906183581,3.04,177.24,177.17,6.542312]
[1753906183781,3.04,177.24,177.1,6.542312]
[1753906183782,109.3,177.36,177.2,3.16]
[1753906184085,3.04,177.34,177.26,3.16]
[1753906184277,6.542312,177.37,177.25,6.542312]
[1753906184483,3.04,177.36,177.26,3.16]
[1753906185393,3.04,177.35,177.26,3.16]
[1753906185689,3.04,177.34,177.31,3.16]
[1753906185889,3.04,177.33,177.31,3.16]
[1753906186193,3.04,177.41,177.3,3.16]
[1753906186490,3.04,177.33,177.3,3.16]
[1753906186789,3.04,177.32,177.3,3.16]
[1753906186992,8.6797,177.32,177.3,3.16]
[1753906187186,3.04,177.34,177.3,3.16]
[1753906187382,3.04,177.38,177.3,3.16]
[1753906188281,3.04,177.35,177.27,6.542312]
[1753906189179,5.6403,177.3,177.26,3.16]
[1753906189384,8.6803,177.3,177.28,3.16]
[1753906189686,3.04,177.3,177.28,3.16]
[1753906189878,6.542312,177.37,177.27,9.702312]
[1753906190084,4.06469814,177.42,177.25,6.542312]
[1753906190085,6.542312,177.35,177.25,6.542312]
[1753906190284,5.6412,177.28,177.25,6.542312]
[1753906190478,6.542312,177.35,177.27,3.16]
[1753906190479,3.04,177.3,177.27,3.16]
[1753906190679,3.04,177.3,177.28,3.16]
[1753906190882,3.04,177.36,177.29,9.702312]
[1753906191285,3.04,177.36,177.3,3.16]
[1753906191990,3.04,177.4,177.31,9.702312]
[1753906192680,3.04,177.36,177.32,3.16]
[1753906192884,3.04,177.4,177.33,9.702312]
[1753906193389,3.04,177.4,177.33,3.16]
[1753906194189,3.04,177.4,177.31,6.542312]
[1753906194388,6.542312,177.37,177.21,6.542312]
[1753906194587,3.04,177.36,177.26,3.16]
[1753906194893,5.6414,177.26,177.25,9.702312]
[1753906195286,5.6414,177.26,177.25,3.16]
[1753906196088,5.6419,177.24,177.23,3.16]
[1753906196293,6.542312,177.35,177.23,3.16]
[1753906196488,6.542312,177.32,177.23,3.16]
[1753906196683,5.6418,177.24,177.23,3.16]
[1753906196884,3.04,177.31,177.21,9.702312]
[1753906197290,5.6421,177.23,177.22,3.16]
[1753906197488,3.04,177.26,177.22,3.16]
[1753906197699,3.04,177.25,177.22,3.16]
[1753906198089,5.6418,177.24,177.22,3.16]
[1753906198595,6.542312,177.29,177.19,3.16]
[1753906198896,3.0,177.28,177.17,9.782312]
[1753906199094,6.542312,177.26,177.17,9.782312]
[1753906199291,3.0,177.25,177.17,9.782312]
[1753906200290,3.0,177.25,177.14,6.542312]
[1753906200493,3.0,177.25,177.15,3.24]
[1753906201397,3.0,177.19,177.11,3.24]
[1753906202495,3.0,177.19,177.09,6.542312]
[1753906202496,3.0,177.19,177.13,3.25]
[1753906203296,8.6435,177.19,177.13,8.8952]
[1753906203496,17.821312,177.32,177.08,379.1]
[1753906203497,3.0,177.22,177.16,3.25]
[1753906203900,5.6429,177.21,177.16,3.25]
[1753906204199,3.0,177.25,177.16,3.25]
[1753906204398,5.643,177.21,177.16,3.25]
[1753906204695,3.0,177.24,177.18,6.542312]
[1753906204899,5.6412,177.26,177.21,6.542312]
[1753906205198,3.0,177.32,177.22,3.25]
[1753906205397,5.6411,177.27,177.21,5.6426]
[1753906205589,3.0,177.31,177.19,6.542312]
[1753906205787,3.0,177.31,177.2,3.25]
[1753906205988,5.641,177.27,177.22,12.184712]
[1753906206296,8.641,177.27,177.22,6.542312]
[1753906206600,3.0,177.27,177.25,3.25]
[1753906207305,3.0,177.34,177.25,3.25]
[1753906208202,5.6409,177.27,177.25,3.25]
[1753906209002,6.542312,177.35,177.22,6.542312]
[1753906209203,3.0,177.25,177.23,3.25]
[1753906209508,8.6417,177.25,177.23,3.25]
[1753906209701,5.6417,177.25,177.22,6.542312]
[1753906209900,5.6417,177.25,177.23,3.25]
[1753906210095,8.6417,177.25,177.23,3.25]
[1753906210495,3.0,177.25,177.23,3.25]
[1753906210698,6.542312,177.3,177.2,3.25]
[1753906210898,5.642,177.24,177.2,3.25]
[1753906211098,3.0,177.23,177.2,3.25]
[1753906211703,5.6427,177.21,177.2,3.25]
[1753906212005,3.0,177.29,177.2,3.25]
[1753906212903,5.6426,177.22,177.2,3.25]
[1753906213094,3.0,177.25,177.21,3.25]
[1753906213303,3.0,177.3,177.2,3.25]
[1753906213505,3.0,177.3,177.22,6.542312]
[1753906213702,3.0,177.3,177.25,6.542312]
[1753906213903,5.6402,177.29,177.27,3.25]
[1753906214105,3.0,177.29,177.27,3.25]
[1753906214601,3.0,177.32,177.28,3.25]
[1753906214804,3.0,177.29,177.27,3.25]
[1753906215005,5.6408,177.28,177.26,3.25]
[1753906215205,8.6408,177.28,177.26,3.25]
[1753906215408,3.0,177.28,177.26,3.25]
[1753906215604,3.0,177.3,177.26,3.25]
[1753906215812,3.0,177.3,177.25,6.542312]
[1753906216106,6.542312,177.38,177.26,3.25]
[1753906216404,3.0,177.37,177.28,6.542312]
[1753906216603,3.0,177.37,177.28,9.792312]
[1753906217201,8.6394,177.32,177.28,6.542312]
[1753906217405,3.0,177.32,177.22,3.25]
[1753906217604,3.0,177.31,177.28,3.25]
[1753906217804,5.6398,177.31,177.27,6.542312]
[1753906218204,8.6398,177.31,177.28,3.25]
[1753906218813,5.6399,177.3,177.28,3.25]
[1753906219409,8.6399,177.3,177.28,3.25]
[1753906219811,3.0,177.29,177.27,6.542312]
[1753906220013,3.0,177.28,177.27,6.542312]
[1753906220211,3.0,177.27,177.25,9.792312]
[1753906220715,6.542312,177.36,177.25,6.542312]
[1753906220914,3.0,177.35,177.25,6.542312]
[1753906221115,5.6407,177.28,177.25,6.542312]
[1753906221316,3.0,177.27,177.25,9.792312]
[1753906221711,8.641,177.27,177.25,9.792312]
[1753906221914,14.2742,177.39,177.25,9.792312]